fUST/lending_fUST_20240218
["ID","MTS","AMOUNT","RATE_DAILY","PERIOD"]
[314375081,1708245039883,-500.0,0.00027945,2]
[314375082,1708245039892,-500.0,0.00027945,2]
[314375083,1708245039901,-500.0,0.00027945,2]
[314375084,1708245039910,-500.0,0.00027945,2]
[314375085,1708245039919,-2509.35,0.00027945,2]
[314375086,1708245039928,-3492.66,0.00027945,2]
[314375087,1708245039937,-500.0,0.00027945,2]
[314375088,1708245039946,-1062.72,0.00027945,2]
[314375089,1708245039955,-500.0,0.00027945,2]
[314375090,1708245039964,-750.74,0.00027945,2]
[314375091,1708245039973,-987.86,0.00027945,2]
[314375092,1708245039982,-500.0,0.00027945,2]
[314375093,1708245039991,-519.4,0.00027945,2]
[314375094,1708245040000,-500.0,0.00027945,2]
[314375095,1708245040010,-500.0,0.00027945,2]
[314375096,1708245040019,-639.73,0.00027945,2]
[314375097,1708245040028,-694.78,0.00027945,2]
[314375098,1708245040037,-5729.11,0.00027945,2]
[314375099,1708245040046,-500.0,0.00027945,2]
[314375100,1708245040055,-329.483115,0.00027945,2]
[314375101,1708245040064,-500.0,0.00027945,2]
[314375102,1708245040073,-4884.9,0.00027945,2]
[314375103,1708245040082,-329.483115,0.00027945,2]
[314375104,1708245040090,-808.84,0.00027945,2]
[314375105,1708245040100,-869.15,0.00027945,2]
[314375106,1708245040109,-4338.04,0.00027945,2]
[314375107,1708245040118,-500.0,0.00027945,2]
[314375108,1708245040127,-151.0,0.00027945,2]
[314375109,1708245040136,-531.57,0.00027945,2]
[314375110,1708245040145,-624.13,0.00027945,2]
[314375111,1708245040154,-1079.97,0.00027945,2]
[314375112,1708245040163,-500.0,0.00027945,2]
[314375113,1708245040172,-945.13,0.00027945,2]
[314375114,1708245040181,-6782.44,0.00027945,2]
[314375115,1708245040190,-926.29,0.00027945,2]
[314375116,1708245040199,-500.0,0.00027945,2]
[314375117,1708245040209,-6030.68,0.00027945,2]
[314375118,1708245040218,-153.0,0.00027945,2]
[314375120,1708245040227,-153.0,0.00027945,2]
[314375122,1708245040236,-155.0356582,0.00028,2]
[314375124,1708245040248,-155.02480397,0.00028,2]
[314375126,1708245040262,-1000.0,0.00028,28]
[314375129,1708245040275,-620.61047922,0.00028126,2]
[314375131,1708245040288,-3616.89,0.00028217,2]
[314375132,1708245040300,-3616.89,0.00028218,2]
[314375133,1708245040310,-500.0,0.00028219,2]
[314375134,1708245040322,-500.0,0.00028219,2]
[314375135,1708245040334,-500.0,0.00028219,2]
[314375136,1708245040346,-151.0,0.00028219,2]
[314375137,1708245040358,-500.0,0.00028219,2]
[314375138,1708245040372,-500.0,0.00028219,2]
[314375139,1708245040384,-151.0,0.00028219,2]
[314375140,1708245040397,-500.0,0.00028219,2]
[314375141,1708245040408,-546.62,0.00028219,2]
[314375142,1708245040418,-155.142369,0.00028219,2]
[314375143,1708245040428,-500.0,0.00028219,2]
[314375144,1708245040441,-500.0,0.00028219,2]
[314375145,1708245040453,-500.0,0.00028219,2]
[314375146,1708245040464,-617.01,0.00028219,2]
[314375147,1708245040476,-500.0,0.00028219,2]
[314375148,1708245040487,-519.12545864,0.00028219,2]
[314375149,1708245040501,-500.0,0.00028219,2]
[314375150,1708245040513,-151.0,0.00028219,2]
[314375151,1708245040525,-500.0,0.00028219,2]
[314375152,1708245040537,-500.0,0.00028219,2]
[314375153,1708245040547,-2509.35,0.00028219,2]
[314375154,1708245040560,-3492.66,0.00028219,2]
[314375155,1708245040574,-320.82364073,0.00028219,2]
[314375156,1708245040584,-1062.72,0.00028219,2]
[314375157,1708245040597,-500.0,0.00028219,2]
[314375158,1708245040607,-750.74,0.00028219,2]
[314375159,1708245040619,-987.86,0.00028219,2]
[314375160,1708245040630,-500.0,0.00028219,2]
[314375161,1708245040642,-519.4,0.00028219,2]
[314375162,1708245040653,-500.0,0.00028219,2]
[314375163,1708245040665,-500.0,0.00028219,2]
[314375164,1708245040678,-639.73,0.00028219,2]
[314375165,1708245040690,-694.78,0.00028219,2]
[314375166,1708245040703,-5729.11,0.00028219,2]
[314375167,1708245040715,-500.0,0.00028219,2]
[314375168,1708245040727,-500.0,0.00028219,2]
[314375169,1708245040737,-4884.9,0.00028219,2]
[314375170,1708245040747,-808.84,0.00028219,2]
[314375171,1708245040757,-869.15,0.00028219,2]
[314375172,1708245040767,-4338.04,0.00028219,2]
[314375173,1708245040778,-500.0,0.00028219,2]
[314375174,1708245040790,-531.57,0.00028219,2]
[314375175,1708245040801,-624.13,0.00028219,2]
[314375176,1708245040812,-1079.97,0.00028219,2]
[314375177,1708245040823,-514.4099891,0.00028219,2]
[314375178,1708245040835,-945.13,0.00028219,2]
[314375179,1708245040845,-6782.44,0.00028219,2]
[314375180,1708245040856,-926.29,0.00028219,2]
[314375181,1708245040866,-500.0,0.00028219,2]
[314375182,1708245040877,-6030.68,0.00028219,2]
[314375183,1708245040887,-2908.91814448,0.00028306,2]
[314375184,1708245040899,-438.05208053,0.00028421,2]
[314375185,1708245040909,-3616.89,0.00028492,2]
[314375186,1708245040920,-3616.89,0.00028492,2]
[314375187,1708245040930,-500.0,0.00028493,2]
[314375188,1708245040942,-500.0,0.00028493,2]
[314375189,1708245040952,-500.0,0.00028493,2]
[314375190,1708245040963,-500.0,0.00028493,2]
[314375191,1708245040973,-500.0,0.00028493,2]
[314375192,1708245040984,-519.16773641,0.00028493,2]
[314375193,1708245040995,-546.62,0.00028493,2]
[314375194,1708245041005,-500.0,0.00028493,2]
[314375195,1708245041016,-500.0,0.00028493,2]
[314375196,1708245041028,-500.0,0.00028493,2]
[314375198,1708245041038,-617.01,0.00028493,2]
[314375200,1708245041049,-500.0,0.00028493,2]
[314375201,1708245041059,-500.0,0.00028493,2]
[314375202,1708245041071,-151.0,0.00028493,2]
[314375203,1708245041082,-500.0,0.00028493,2]
[314375204,1708245041092,-500.0,0.00028493,2]
[314375206,1708245041103,-2509.35,0.00028493,2]
[314375208,1708245041114,-3492.66,0.00028493,2]
[314375209,1708245041124,-1062.72,0.00028493,2]
[314375210,1708245041134,-500.0,0.00028493,2]
[314375211,1708245041145,-750.74,0.00028493,2]
[314375213,1708245041155,-987.86,0.00028493,2]
[314375215,1708245041166,-500.0,0.00028493,2]
[314375217,1708245041177,-519.4,0.00028493,2]
[314375219,1708245041188,-500.0,0.00028493,2]
[314375222,1708245041198,-500.0,0.00028493,2]
[314375224,1708245041209,-639.73,0.00028493,2]
[314375226,1708245041219,-694.78,0.00028493,2]
[314375228,1708245041230,-5729.11,0.00028493,2]
[314375241,1708245041241,-500.0,0.00028493,2]
[314375243,1708245041351,-329.483115,0.00028493,2]
[314375245,1708245041361,-500.0,0.00028493,2]
[314375247,1708245041370,-4884.9,0.00028493,2]
[314375249,1708245041379,-329.483115,0.00028493,2]
[314375251,1708245041388,-808.84,0.00028493,2]
[314375253,1708245041397,-869.15,0.00028493,2]
[314375255,1708245041406,-4338.04,0.00028493,2]
[314375257,1708245041415,-500.0,0.00028493,2]
[314375259,1708245041425,-151.0,0.00028493,2]
[314375261,1708245041434,-531.57,0.00028493,2]
[314375262,1708245041443,-624.13,0.00028493,2]
[314375263,1708245041453,-1079.97,0.00028493,2]
[314375264,1708245041462,-945.13,0.00028493,2]
[314375265,1708245041471,-6782.44,0.00028493,2]
[314375266,1708245041480,-926.29,0.00028493,2]
[314375267,1708245041492,-500.0,0.00028493,2]
[314375268,1708245041501,-6030.68,0.00028493,2]
[314375269,1708245041510,-2000.0,0.000287,2]
[314375270,1708245041519,-153.872742,0.000287,2]
[314375271,1708245041529,-3054.323274,0.0002871,2]
[314375272,1708245041538,-177.71078925,0.00028765,2]
[314375273,1708245041547,-151.0,0.00028766,2]
[314375274,1708245041556,-3616.89,0.00028766,2]
[314375275,1708245041565,-285.34624526,0.00028766,2]
[314375276,1708245041574,-500.0,0.00028766,2]
[314375277,1708245041583,-500.0,0.00028766,2]
[314375278,1708245041592,-500.0,0.00028766,2]
[314375279,1708245041601,-421.28045827,0.00028766,2]
[314375280,1708245041610,-500.0,0.00028766,2]
[314375281,1708245041619,-500.0,0.00028766,2]
[314375282,1708245041628,-500.0,0.00028766,2]
[314375283,1708245041638,-500.0,0.00028766,2]
[314375284,1708245041647,-500.0,0.00028766,2]
[314375285,1708245041658,-232.44792173,0.00028766,2]
[314375286,1708245041668,-500.0,0.00028766,2]
[314375287,1708245041677,-500.0,0.00028766,2]
[314375288,1708245041686,-195.95339384,0.00028766,2]
[314375289,1708245041695,-500.0,0.00028767,2]
[314375290,1708245041704,-502.19323529,0.00028767,2]
[314375291,1708245041713,-500.0,0.00028767,2]
[314375292,1708245041721,-500.0,0.00028767,2]
[314375293,1708245041730,-500.0,0.00028767,2]
[314375294,1708245041739,-546.62,0.00028767,2]
[314375295,1708245041748,-500.0,0.00028767,2]
[314375296,1708245041757,-500.0,0.00028767,2]
[314375297,1708245041766,-253.87529067,0.00028767,2]
[314375298,1708245041775,-155.0,0.00028767,2]
[314375299,1708245041784,-617.01,0.00028767,2]
[314375300,1708245041792,-500.0,0.00028767,2]
[314375301,1708245041801,-500.0,0.00028767,2]
[314375302,1708245041810,-500.0,0.00028767,2]
[314375303,1708245041819,-601.70924849,0.00028767,2]
[314375304,1708245041828,-2509.35,0.00028767,2]
[314375305,1708245041837,-3492.66,0.00028767,2]
[314375306,1708245041847,-1062.72,0.00028767,2]
[314375307,1708245041856,-500.0,0.00028767,2]
[314375308,1708245041865,-750.74,0.00028767,2]
[314375309,1708245041874,-987.86,0.00028767,2]
[314375310,1708245041883,-500.0,0.00028767,2]
[314375311,1708245041891,-519.4,0.00028767,2]
[314375312,1708245041900,-500.0,0.00028767,2]
[314375313,1708245041909,-500.0,0.00028767,2]
[314375314,1708245041918,-639.73,0.00028767,2]
[314375315,1708245041927,-694.78,0.00028767,2]
[314375316,1708245041936,-5729.11,0.00028767,2]
[314375317,1708245041945,-500.0,0.00028767,2]
[314375318,1708245041954,-329.483115,0.00028767,2]
[314375319,1708245041964,-500.0,0.00028767,2]
[314375320,1708245041974,-4884.9,0.00028767,2]
[314375321,1708245041983,-329.483115,0.00028767,2]
[314375322,1708245041992,-808.84,0.00028767,2]
[314375323,1708245042001,-869.15,0.00028767,2]
[314375324,1708245042010,-4338.04,0.00028767,2]
[314375325,1708245042020,-500.0,0.00028767,2]
[314375326,1708245042029,-151.0,0.00028767,2]
[314375327,1708245042039,-531.57,0.00028767,2]
[314375328,1708245042049,-624.13,0.00028767,2]
[314375329,1708245042059,-1079.97,0.00028767,2]
[314375330,1708245042069,-945.13,0.00028767,2]
[314375331,1708245042079,-6782.44,0.00028767,2]
[314375332,1708245042089,-926.29,0.00028767,2]
[314375333,1708245042099,-500.0,0.00028767,2]
[314375334,1708245042108,-6030.68,0.00028767,2]
[314375335,1708245042117,-153.0,0.00028767,2]
[314375336,1708245042126,-153.0,0.00028767,2]
[314375337,1708245042135,-158.48337211,0.00028814,4]
[314375338,1708245042144,-295.84750707,0.00028933,2]
[314375339,1708245042153,-3616.89,0.00028933,2]
[314375340,1708245042163,-14729.2897667,0.00028941,2]
[314375341,1708245042171,-281.99355911,0.00029,7]
[314375342,1708245042180,-1000.0,0.00029,29]
[314375343,1708245042189,-151.0,0.0002904,2]
[314375344,1708245042199,-3616.89,0.0002904,2]
[314375345,1708245042208,-500.29871377,0.00029041,2]
[314375346,1708245042217,-500.0,0.00029041,2]
[314375347,1708245042226,-500.0,0.00029041,2]
[314375348,1708245042235,-500.0,0.00029041,2]
[314375349,1708245042244,-546.62,0.00029041,2]
[314375350,1708245042253,-500.0,0.00029041,2]
[314375351,1708245042262,-500.0,0.00029041,2]
[314375352,1708245042272,-617.01,0.00029041,2]
[314375353,1708245042281,-522.95147879,0.00029041,2]
[314375354,1708245042301,-500.0,0.00029041,2]
[314375356,1708245042312,-500.0,0.00029041,2]
[314375357,1708245042322,-2509.35,0.00029041,2]
[314375358,1708245042332,-3492.66,0.00029041,2]
[314375359,1708245042341,-1062.72,0.00029041,2]
[314375360,1708245042351,-500.0,0.00029041,2]
[314375361,1708245042360,-750.74,0.00029041,2]
[314375363,1708245042370,-987.86,0.00029041,2]
[314375365,1708245042380,-500.0,0.00029041,2]
[314375367,1708245042390,-519.4,0.00029041,2]
[314375368,1708245042400,-500.0,0.00029041,2]
[314375369,1708245042410,-500.0,0.00029041,2]
[314375370,1708245042419,-639.73,0.00029041,2]
[314375371,1708245042429,-694.78,0.00029041,2]
[314375372,1708245042438,-5729.11,0.00029041,2]
[314375373,1708245042447,-500.0,0.00029041,2]
[314375374,1708245042457,-329.483115,0.00029041,2]
[314375375,1708245042467,-500.0,0.00029041,2]
[314375376,1708245042476,-4884.9,0.00029041,2]
[314375378,1708245042487,-329.483115,0.00029041,2]
[314375381,1708245042500,-808.84,0.00029041,2]
[314375383,1708245042509,-869.15,0.00029041,2]
[314375384,1708245042519,-4338.04,0.00029041,2]
[314375385,1708245042529,-500.0,0.00029041,2]
[314375386,1708245042539,-151.0,0.00029041,2]
[314375387,1708245042548,-531.57,0.00029041,2]
[314375388,1708245042558,-624.13,0.00029041,2]
[314375389,1708245042568,-1079.97,0.00029041,2]
[314375390,1708245042577,-945.13,0.00029041,2]
[314375392,1708245042587,-6782.44,0.00029041,2]
[314375394,1708245042597,-926.29,0.00029041,2]
[314375396,1708245042606,-500.0,0.00029041,2]
[314375398,1708245042616,-6030.68,0.00029041,2]
[314375400,1708245042625,-155.83992726,0.00029168,2]
[314375402,1708245042635,-151.54394486,0.00029256,2]
[314375404,1708245042644,-163.23674341,0.000293,2]
[314375406,1708245042653,-273.55227487,0.00029313,2]
[314375407,1708245042662,-3616.89,0.00029313,2]
[314375409,1708245042672,-3616.89,0.00029314,2]
[314375411,1708245042682,-3616.89,0.00029314,2]
[314375413,1708245042691,-3616.89,0.00029314,2]
[314375415,1708245042701,-3616.89,0.00029314,2]
[314375417,1708245042711,-3617.09,0.00029314,2]
[314375419,1708245042721,-500.0,0.00029315,2]
[314375420,1708245042730,-161.252891,0.00029315,2]
[314375422,1708245042740,-500.0,0.00029315,2]
[314375424,1708245042750,-500.0,0.00029315,2]
[314375426,1708245042759,-546.62,0.00029315,2]
[314375428,1708245042769,-500.0,0.00029315,2]
[314375430,1708245042779,-500.0,0.00029315,2]
[314375432,1708245042788,-617.01,0.00029315,2]
[314375434,1708245042797,-500.0,0.00029315,2]
[314375436,1708245042807,-578.69198446,0.00029315,2]
[314375438,1708245042816,-2509.35,0.00029315,2]
[314375440,1708245042825,-3492.66,0.00029315,2]
[314375442,1708245042835,-1062.72,0.00029315,2]
[314375444,1708245042844,-500.0,0.00029315,2]
[314375446,1708245042853,-750.74,0.00029315,2]
[314375448,1708245042863,-987.86,0.00029315,2]
[314375450,1708245042872,-500.0,0.00029315,2]
[314375452,1708245042882,-519.4,0.00029315,2]
[314375454,1708245042891,-500.0,0.00029315,2]
[314375456,1708245042900,-500.0,0.00029315,2]
[314375458,1708245042909,-639.73,0.00029315,2]
[314375460,1708245042918,-694.78,0.00029315,2]
[314375462,1708245042928,-5729.11,0.00029315,2]
[314375464,1708245042937,-500.0,0.00029315,2]
[314375466,1708245042947,-329.483115,0.00029315,2]
[314375468,1708245042956,-500.0,0.00029315,2]
[314375470,1708245042965,-329.483115,0.00029315,2]
[314375472,1708245042976,-4884.9,0.00029315,2]
[314375474,1708245042985,-808.84,0.00029315,2]
[314375476,1708245042994,-869.15,0.00029315,2]
[314375478,1708245043004,-4338.04,0.00029315,2]
[314375480,1708245043014,-500.0,0.00029315,2]
[314375482,1708245043024,-151.0,0.00029315,2]
[314375484,1708245043033,-531.57,0.00029315,2]
[314375486,1708245043043,-624.13,0.00029315,2]
[314375488,1708245043053,-1079.97,0.00029315,2]
[314375490,1708245043063,-945.13,0.00029315,2]
[314375492,1708245043073,-5224.07524976,0.00029315,2]
[314375527,1708245043400,-1000.0,0.00027,27]
[314375529,1708245043411,-500.0,0.00027397,2]
[314375531,1708245043420,-500.0,0.00027671,2]
[314375533,1708245043430,-228.0,0.00027945,2]
[314375534,1708245043442,-272.0,0.00027945,2]
[314375535,1708245043451,-500.0,0.00028219,2]
[314375536,1708245043461,-500.0,0.00028493,2]
[314375537,1708245043470,-500.0,0.00028767,2]
[314375538,1708245043479,-500.0,0.00029041,2]
[314375539,1708245043490,-1558.36475024,0.00029315,2]
[314375540,1708245043501,-926.29,0.00029315,2]
[314375541,1708245043511,-500.0,0.00029315,2]
[314375542,1708245043520,-6030.68,0.00029315,2]
[314375543,1708245043530,-500.0,0.00029315,2]
[314375544,1708245043539,-1000.0,0.0002938,7]
[314375545,1708245043549,-620.03052396,0.00029533,2]
[314375546,1708245043558,-500.0,0.00029589,2]
[314375547,1708245043568,-500.0,0.00029589,2]
[314375548,1708245043578,-500.0,0.00029589,2]
[314375549,1708245043587,-546.62,0.00029589,2]
[314375550,1708245043596,-500.0,0.00029589,2]
[314375551,1708245043605,-500.0,0.00029589,2]
[314375552,1708245043615,-617.01,0.00029589,2]
[314375553,1708245043625,-500.0,0.00029589,2]
[314375554,1708245043634,-2509.35,0.00029589,2]
[314375555,1708245043643,-3492.66,0.00029589,2]
[314375556,1708245043652,-1062.72,0.00029589,2]
[314375557,1708245043662,-500.0,0.00029589,2]
[314375558,1708245043671,-750.74,0.00029589,2]
[314375560,1708245043680,-987.86,0.00029589,2]
[314375562,1708245043690,-500.0,0.00029589,2]
[314375564,1708245043698,-519.4,0.00029589,2]
[314375566,1708245043707,-500.0,0.00029589,2]
[314375568,1708245043716,-500.0,0.00029589,2]
[314375570,1708245043726,-639.73,0.00029589,2]
[314375571,1708245043735,-694.78,0.00029589,2]
[314375573,1708245043744,-5729.11,0.00029589,2]
[314375575,1708245043753,-500.0,0.00029589,2]
[314375578,1708245043763,-329.483115,0.00029589,2]
[314375580,1708245043773,-500.0,0.00029589,2]
[314375582,1708245043782,-329.483115,0.00029589,2]
[314375584,1708245043791,-4884.9,0.00029589,2]
[314375586,1708245043801,-808.84,0.00029589,2]
[314375588,1708245043811,-869.15,0.00029589,2]
[314375590,1708245043821,-4338.04,0.00029589,2]
[314375592,1708245043830,-500.0,0.00029589,2]
[314375594,1708245043839,-151.0,0.00029589,2]
[314375596,1708245043849,-531.57,0.00029589,2]
[314375598,1708245043858,-624.13,0.00029589,2]
[314375599,1708245043867,-1079.97,0.00029589,2]
[314375601,1708245043876,-945.13,0.00029589,2]
[314375603,1708245043885,-6782.44,0.00029589,2]
[314375605,1708245043895,-926.29,0.00029589,2]
[314375607,1708245043904,-500.0,0.00029589,2]
[314375609,1708245043913,-6030.68,0.00029589,2]
[314375611,1708245043923,-500.0,0.00029589,2]
[314375613,1708245043932,-159.9605463,0.00029589,2]
[314375615,1708245043941,-300.0,0.00029806,2]
[314375617,1708245043951,-500.0,0.00029863,2]
[314375620,1708245043960,-500.0,0.00029863,2]
[314375622,1708245043970,-500.0,0.00029863,2]
[314375624,1708245043979,-546.62,0.00029863,2]
[314375626,1708245043988,-415.81772748,0.00029863,2]
[314375627,1708245043997,-312.41453173,0.00029863,2]
[314375630,1708245044006,-617.01,0.00029863,2]
[314375632,1708245044015,-500.0,0.00029863,2]
[314375633,1708245044025,-2509.35,0.00029863,2]
[314375635,1708245044034,-3492.66,0.00029863,2]
[314375637,1708245044043,-1062.72,0.00029863,2]
[314375639,1708245044053,-573.24770073,0.00029863,2]
[314375641,1708245044063,-750.74,0.00029863,2]
[314375643,1708245044072,-987.86,0.00029863,2]
[314375645,1708245044081,-500.0,0.00029863,2]
[314375647,1708245044091,-519.4,0.00029863,2]
[314375649,1708245044100,-500.0,0.00029863,2]
[314375651,1708245044109,-500.0,0.00029863,2]
[314375653,1708245044118,-639.73,0.00029863,2]
[314375655,1708245044127,-694.78,0.00029863,2]
[314375657,1708245044136,-5729.11,0.00029863,2]
[314375659,1708245044145,-500.0,0.00029863,2]
[314375661,1708245044155,-500.0,0.00029863,2]
[314375663,1708245044164,-4884.9,0.00029863,2]
[314375665,1708245044173,-808.84,0.00029863,2]
[314375667,1708245044182,-869.15,0.00029863,2]
[314375669,1708245044192,-4338.04,0.00029863,2]
[314375671,1708245044201,-500.0,0.00029863,2]
[314375673,1708245044211,-531.57,0.00029863,2]
[314375675,1708245044220,-624.13,0.00029863,2]
[314375677,1708245044229,-1079.97,0.00029863,2]
[314375679,1708245044239,-945.13,0.00029863,2]
[314375681,1708245044247,-6782.44,0.00029863,2]
[314375683,1708245044257,-926.29,0.00029863,2]
[314375685,1708245044266,-500.0,0.00029863,2]
[314375687,1708245044275,-6030.68,0.00029863,2]
[314375689,1708245044284,-500.0,0.00029863,2]
[314375691,1708245044294,-152.61832865,0.000299,2]
[314375693,1708245044302,-21856.77737097,0.000299,2]
[314375695,1708245044311,-155.47313809,0.00029998,2]
[314375697,1708245044320,-4757.94526768,0.00029998,2]
[314375699,1708245044330,-158.67084224,0.00029998,2]
[314375701,1708245044339,-417.54127116,0.00029998,2]
[314375703,1708245044348,-390.22070821,0.00029998,2]
[314375705,1708245044357,-329.483115,0.00029998,2]
[314375707,1708245044366,-329.483115,0.00029998,2]
[314375709,1708245044376,-151.0,0.00029998,2]
[314375711,1708245044385,-66761.0,0.0003,2]
[314375713,1708245044394,-59531.01382678,0.0003,7]
[314375715,1708245044402,-21320.43935371,0.0003,10]
[314375717,1708245044411,-345.43570352,0.0003,2]
[314375719,1708245044420,-5499.99999502,0.0003,2]
[314375722,1708245044441,-244.38418428,0.0003,4]
[314375724,1708245044450,-10013.21252538,0.0003,2]
[314375726,1708245044460,-1020.05390563,0.0003,2]
[314375728,1708245044470,-16058.88835035,0.0003,2]
[314375886,1708245045942,-5497.40352487,0.0003,2]
[314375888,1708245045952,-329.483115,0.0003,2]
[314375890,1708245045962,-1000.0,0.0003,30]
[314375892,1708245045972,-329.483115,0.0003,2]
[314375894,1708245045983,-151.0,0.0003,2]
[314375896,1708245045993,-223.0,0.0003,2]
[314375898,1708245046003,-3963.38068755,0.00030019,5]
[314375900,1708245046015,-772.10710393,0.00030019,5]
[314376488,1708246239958,-1156.6432218,0.00021017,2]
[314376490,1708246239969,-1067.0158911,0.00021017,2]
[314376492,1708246239978,-1000.0,0.00021098,2]
[314376494,1708246239987,-2400.4341089,0.00021099,2]
[314376496,1708246239998,-5102.63504133,0.00021099,2]
[314376812,1708246243205,-1822.753349,0.00021044,2]
[314376814,1708246243214,-5150.56738067,0.00021099,2]
[314376816,1708246243223,-269.8146331,0.00021182,2]
[314376818,1708246243232,-2265.51945487,0.00021275,2]
[314377893,1708246854653,542.8274192,0.00018525,2]
[314377895,1708246976477,18662.6070369,0.0001852,2]
[314377896,1708247003113,150.80844,0.00018,2]
[314377897,1708247057567,155.02790502,0.00018,2]
[314377898,1708247076140,184.2953657,0.00018409,2]
[314377914,1708247099247,250.0,0.00018262,2]
[314377923,1708247124072,421.0450132,0.00018324,2]
[314377925,1708247149183,3000.0,0.00018493,2]
[314377929,1708247195328,155.83992726,0.00018401,2]
[314377930,1708247199251,24900.0,0.00018493,2]
[314377932,1708247213842,200.0,0.0001834,2]
[314377934,1708247226291,200.0,0.0001834,2]
[314377935,1708247237617,200.0,0.0001834,2]
[314377937,1708247249050,200.0,0.0001834,2]
[314377938,1708247260764,200.0,0.0001834,2]
[314377940,1708247268680,5282.97100816,0.0001834,2]
[314377941,1708247272262,200.29141,0.0001834,2]
[314377942,1708247286685,1289.31233101,0.0001834,2]
[314377984,1708247434350,-521.0,0.00018663,2]
[314377985,1708247434362,-273.55227487,0.00018664,2]
[314377986,1708247434374,-652.6336341,0.00018675,2]
[314377987,1708247434386,-261.53905327,0.00018675,2]
[314377988,1708247434399,-1767.7569662,0.00018676,2]
[314377989,1708247434411,-911.376674,0.00018709,2]
[314377991,1708247434421,-295.12626262,0.00019169,2]
[314377992,1708247434431,-10.63348845,0.00019175,2]
[314377993,1708247434446,-463.7665836,0.00019175,2]
[314378013,1708247440613,-2225.77715558,0.00019175,2]
[314378015,1708247440624,-168.352908,0.00019178,2]
[314378017,1708247440635,-170.254378,0.00019418,2]
[314378019,1708247440646,-151.54394486,0.0002,2]
[314378022,1708247440657,-687.5844037,0.0002059,2]
[314378024,1708247440668,-1222.8955166,0.00020608,2]
[314378038,1708247440796,-1972.83473668,0.00020738,2]
[314378042,1708247440822,-2523.95281302,0.00020738,2]
[314378044,1708247440831,-3919.2333571,0.00021,2]
[314378046,1708247440842,-1456.488378,0.00021541,2]
[314378048,1708247440852,-1004.27641323,0.00021999,2]
[314378050,1708247440861,-357.36679353,0.00022,2]
[314378052,1708247440872,-327.0028268,0.00022,2]
[314378054,1708247440882,-427.90583504,0.0002234,2]
[314378056,1708247440892,-679.60172287,0.00022347,2]
[314378058,1708247440901,-169.599211,0.00022831,2]
[314378059,1708247440911,-2700.17722763,0.00024175,2]
[314378061,1708247440921,-280.0,0.00024658,2]
[314378063,1708247440930,-159.636996,0.00024658,2]
[314378065,1708247440940,-647.53104673,0.00024838,2]
[314378067,1708247440949,-170.38,0.0002499,3]
[314378069,1708247440958,-2733.37,0.0002499,3]
[314378071,1708247440968,-5212.35,0.0002499,3]
[314378073,1708247440977,-216.61,0.0002499,3]
[314378075,1708247440986,-4343.62,0.0002499,3]
[314378077,1708247440995,-64523.23945376,0.00025,2]
[314378079,1708247441004,-7417.65678579,0.00025,2]
[314378081,1708247441013,-155.31725601,0.00025379,2]
[314378083,1708247441023,-200.0,0.00025479,2]
[314378085,1708247441032,-159.636996,0.00025619,2]